bitfinex/quotes_BTCUSD_20251021
["timestamp","ask_amount","ask_price","bid_price","bid_amount"]
[1761064070931,0.8631493,113980.0,113970.0,0.00214582]
[1761064071105,0.18677556,113980.0,113970.0,0.00214582]
[1761064071306,0.18677556,113980.0,113970.0,0.01969429]
[1761064071536,0.01130618,113980.0,113970.0,0.30825906]
[1761064071729,0.18677556,113980.0,113970.0,0.11522582]
[1761064071908,0.18677556,113980.0,113970.0,0.11422582]
[1761064072122,0.18677556,113980.0,113970.0,0.11322582]
[1761064072670,0.18677556,113980.0,113970.0,0.28871059]
[1761064072801,0.18677556,113980.0,113970.0,0.11322582]
[1761064077446,0.18677556,113980.0,113970.0,0.00014582]
[1761064079825,0.8631493,113980.0,113970.0,0.00014582]
[1761064080030,0.18677556,113980.0,113970.0,0.00014582]
[1761064082733,0.8631493,113980.0,113970.0,0.00014582]
[1761064085384,0.18677556,113980.0,113970.0,0.00014582]
[1761064086955,0.18677556,113980.0,113970.0,0.01769429]
[1761064089916,0.18677556,113980.0,113970.0,0.01769429]
[1761064090123,0.18677556,113980.0,113970.0,0.00014582]
[1761064094015,1.40560831,113980.0,113970.0,0.00014582]
[1761064096275,1.40660831,113980.0,113970.0,0.00014582]
[1761064097628,0.73023457,113980.0,113970.0,0.00014582]
[1761064097893,1.40660831,113980.0,113970.0,0.00014582]
[1761064099901,1.42660831,113980.0,113970.0,0.00014582]
[1761064102410,0.75007457,113980.0,113970.0,0.00014582]
[1761064102614,0.74007458,113980.0,113970.0,0.00014582]
[1761064102830,1.42644831,113980.0,113970.0,0.00014582]
[1761064104402,0.74907457,113980.0,113970.0,0.00014582]
[1761064104600,1.42544831,113980.0,113970.0,0.00014582]
[1761064105559,0.74907457,113980.0,113970.0,0.00014582]
[1761064106945,0.73907458,113980.0,113970.0,0.00014582]
[1761064107148,0.74907457,113980.0,113970.0,0.00014582]
[1761064107353,0.73907458,113980.0,113970.0,0.00014582]
[1761064107552,0.74907457,113980.0,113970.0,0.00014582]
[1761064108752,0.73907458,113980.0,113970.0,0.00014582]
[1761064109477,0.7754602,113980.0,113970.0,0.00014582]
[1761064109854,0.76546021,113980.0,113970.0,0.00014582]
[1761064110059,0.7754602,113980.0,113970.0,0.00014582]
[1761064110671,0.76546021,113980.0,113970.0,0.00014582]
[1761064110911,0.7754602,113980.0,113970.0,0.00014582]
[1761064111097,1.25162913,113980.0,113970.0,0.00014582]
[1761064111398,0.7754602,113980.0,113970.0,0.00014582]
[1761064111631,1.25985301,113980.0,113970.0,0.00014582]
[1761064112039,0.78368408,113980.0,113970.0,0.00014582]
[1761064112253,1.24985302,113980.0,113970.0,0.00014582]
[1761064112425,0.78368408,113980.0,113970.0,0.00014582]
[1761064112640,1.82584095,113980.0,113970.0,0.00014582]
[1761064113386,1.81584096,113980.0,113970.0,0.00014582]
[1761064113838,1.82584095,113980.0,113970.0,0.00014582]
[1761064114058,2.30200988,113980.0,113970.0,0.00014582]
[1761064114268,2.32095767,113980.0,113970.0,0.00014582]
[1761064115033,1.84478874,113980.0,113970.0,0.00014582]
[1761064115236,2.32095767,113980.0,113970.0,0.00014582]
[1761064115495,2.32295767,113980.0,113970.0,0.00014582]
[1761064115818,1.84678874,113980.0,113970.0,0.00014582]
[1761064116012,0.77568409,113980.0,113970.0,0.00014582]
[1761064116266,0.78568408,113980.0,113970.0,0.00014582]
[1761064116512,1.25185302,113980.0,113970.0,0.00014582]
[1761064116673,1.26185301,113980.0,113970.0,0.00014582]
[1761064116882,0.77568409,113980.0,113970.0,0.00014582]
[1761064117094,1.26185301,113980.0,113970.0,0.00014582]
[1761064118265,0.78568408,113980.0,113970.0,0.00014582]
[1761064120743,1.64210584,113980.0,113970.0,0.00014582]
[1761064120949,1.73192485,113980.0,113970.0,1e-08]
[1761064121169,1.72370097,113980.0,113970.0,1e-08]
[1761064121376,1.74370096,113980.0,113970.0,1e-08]
[1761064121860,1.73370096,113980.0,113970.0,1e-08]
[1761064122064,1.74370096,113980.0,113970.0,1e-08]
[1761064122478,1.77519437,113980.0,113970.0,1e-08]
[1761064122987,0.93772601,113980.0,113970.0,1e-08]
[1761064123189,0.81524601,113980.0,113970.0,1e-08]
[1761064123390,1.18140196,113980.0,113970.0,1e-08]
[1761064123603,1.29388196,113980.0,113970.0,1e-08]
[1761064123836,1.63388196,113980.0,113970.0,1e-08]
[1761064124381,1.63499507,113980.0,113970.0,1e-08]
[1761064125857,0.79752671,113980.0,113970.0,1e-08]
[1761064126057,1.63499507,113980.0,113970.0,1e-08]
[1761064126793,0.79752671,113980.0,113970.0,1e-08]
[1761064126970,1.63499507,113980.0,113970.0,1e-08]
[1761064127371,0.79752671,113980.0,113970.0,1e-08]
[1761064127596,1.63499507,113980.0,113970.0,1e-08]
[1761064130747,1.65353696,113980.0,113970.0,1e-08]
[1761064130946,0.79752671,113980.0,113970.0,1e-08]
[1761064131147,1.63499507,113980.0,113970.0,1e-08]
[1761064136237,1.64320794,113980.0,113970.0,1e-08]
[1761064137764,0.79752671,113980.0,113970.0,1e-08]
[1761064137961,1.63499507,113980.0,113970.0,1e-08]
[1761064138169,1.72481408,113980.0,113970.0,1e-08]
[1761064138597,0.88734572,113980.0,113970.0,1e-08]
[1761064138769,1.63499507,113980.0,113970.0,1e-08]
[1761064139901,0.79752671,113980.0,113970.0,1e-08]
[1761064140090,1.64499507,113980.0,113970.0,1e-08]
[1761064140869,1.28388152,113980.0,113970.0,1e-08]
[1761064141074,1.34224296,113980.0,113970.0,1e-08]
[1761064141628,1.81859777,113980.0,113970.0,1e-08]
[1761064142520,4.81859777,113980.0,113970.0,1e-08]
[1761064142742,4.82859776,113980.0,113970.0,1e-08]
[1761064143154,4.83859776,113980.0,113970.0,1e-08]
[1761064143569,4.87009117,113980.0,113970.0,1e-08]
[1761064143788,4.83759776,113980.0,113970.0,1e-08]
[1761064144015,4.83859776,113980.0,113970.0,1e-08]
[1761064145591,4.84059776,113980.0,113970.0,1e-08]
[1761064145799,4.83059776,113980.0,113970.0,1e-08]
[1761064145979,4.84059776,113980.0,113970.0,1e-08]
[1761064146832,4.83059776,113980.0,113970.0,1e-08]
[1761064147019,4.84059776,113980.0,113970.0,1e-08]
[1761064148365,4.69811778,113980.0,113970.0,1e-08]
[1761064148581,4.84055776,113980.0,113970.0,1e-08]
[1761064149897,4.71811776,113980.0,113970.0,1e-08]
[1761064150125,4.83059776,113980.0,113970.0,1e-08]
[1761064150324,4.84059776,113980.0,113970.0,1e-08]
[1761064150547,1.19340151,113980.0,113970.0,1e-08]
[1761064150747,1.64975633,113980.0,113970.0,1e-08]
[1761064150965,1.17340152,113980.0,113970.0,1e-08]
[1761064151170,1.28584152,113980.0,113970.0,1e-08]
[1761064151296,1.76219633,113980.0,113970.0,1e-08]
[1761064151700,1.76019633,113980.0,113970.0,1e-08]
[1761064151954,1.75819633,113980.0,113970.0,1e-08]
[1761064152217,1.76119633,113980.0,113970.0,1e-08]
[1761064153346,0.68604672,113980.0,113970.0,1e-08]
[1761064153565,0.95306626,113980.0,113970.0,1e-08]
[1761064153774,1.29306626,113980.0,113970.0,1e-08]
[1761064153996,0.81671145,113980.0,113970.0,1e-08]
[1761064154173,1.76119633,113980.0,113970.0,1e-08]
[1761064154384,1.84901534,113980.0,113970.0,1e-08]
[1761064154557,4.84901534,113980.0,113970.0,1e-08]
[1761064154756,4.86001533,113980.0,113970.0,1e-08]
[1761064155555,4.85901533,113980.0,113970.0,1e-08]
[1761064155804,4.86001533,113980.0,113970.0,1e-08]
[1761064156391,4.88950874,113980.0,113970.0,1e-08]
[1761064156607,4.89950874,113980.0,113970.0,1e-08]
[1761064156763,4.90050874,113980.0,113970.0,1e-08]
[1761064157584,4.9648402,113980.0,113970.0,1e-08]
[1761064157825,4.9668402,113980.0,113970.0,1e-08]
[1761064159876,5.44319501,113980.0,113970.0,1e-08]
[1761064160287,5.46909027,113980.0,113970.0,1e-08]
[1761064160536,0.52556178,113920.0,113910.0,0.00134953]
[1761064160712,1.27428642,113920.0,113910.0,0.00183665]
[1761064161110,1.75064123,113920.0,113910.0,0.00183665]
[1761064161398,1.70693313,113920.0,113910.0,0.00183665]
[1761064161600,1.70693313,113920.0,113910.0,1e-08]
[1761064162050,1.23057832,113920.0,113910.0,1e-08]
[1761064162205,1.70693313,113920.0,113910.0,1e-08]
[1761064162648,1.23157832,113920.0,113910.0,1e-08]
[1761064162855,1.80775213,113920.0,113910.0,1e-08]
[1761064163878,4.80775213,113920.0,113910.0,1e-08]
[1761064164111,4.81665314,113920.0,113910.0,1e-08]
[1761064164314,4.81765314,113920.0,113910.0,1e-08]
[1761064164665,3.86494352,113920.0,113910.0,1e-08]
[1761064164870,5.5525836,113920.0,113910.0,1e-08]
[1761064165435,5.58149648,113920.0,113910.0,1e-08]
[1761064165870,5.57149649,113920.0,113910.0,1e-08]
[1761064166095,5.58149648,113920.0,113910.0,1e-08]
[1761064166343,5.58049648,113920.0,113910.0,1e-08]
[1761064166580,5.58249648,113920.0,113910.0,1e-08]
[1761064166760,5.67745648,113920.0,113910.0,1e-08]
[1761064166996,5.67545648,113920.0,113910.0,1e-08]
[1761064167194,5.67445648,113920.0,113910.0,1e-08]
[1761064167404,5.67845648,113920.0,113910.0,1e-08]
[1761064168013,0.5256543,113860.0,113850.0,0.0004]
[1761064168239,1.62082414,113860.0,113850.0,0.0004]
[1761064168807,1.64724353,113860.0,113850.0,0.0004]
[1761064169584,1.5936781,113860.0,113850.0,0.0004]
[1761064170759,1.5936781,113860.0,113820.0,0.0004]
[1761064170760,0.18570059,113830.0,113820.0,0.0004]
[1761064170923,1.22681964,113830.0,113820.0,0.0004]
[1761064171507,0.396619,113830.0,113820.0,0.0004]
[1761064171695,0.284139,113830.0,113820.0,0.0004]
[1761064171908,0.00999999,113830.0,113820.0,0.17611604]
[1761064172108,0.18570059,113830.0,113820.0,0.17611604]
[1761064172856,0.18570059,113830.0,113820.0,0.0004]
[1761064173072,0.18570059,113830.0,113820.0,0.17611604]
[1761064173970,0.18570059,113830.0,113820.0,0.0014]
[1761064174385,0.18570059,113830.0,113820.0,0.00434359]
[1761064175538,1.20415865,113830.0,113820.0,0.00434359]
[1761064175738,1.2205032,113830.0,113820.0,0.00434359]
[1761064175948,1.24692783,113830.0,113820.0,0.00434359]
[1761064176562,1.24692783,113830.0,113820.0,0.00334359]
[1761064177190,1.58792783,113830.0,113820.0,0.00334359]
[1761064177390,1.58789841,113830.0,113820.0,0.00334359]
[1761064177857,1.4980794,113830.0,113820.0,0.00334359]
[1761064179003,0.77177936,113830.0,113820.0,0.00334359]
[1761064179231,0.7290396,113830.0,113820.0,0.00334359]
[1761064179686,0.745338,113830.0,113820.0,0.00334359]
[1761064180141,0.73533862,113830.0,113820.0,0.00334359]
[1761064180368,0.74533861,113830.0,113820.0,0.00334359]
[1761064180817,0.73533862,113830.0,113820.0,0.00334359]
[1761064181042,0.74533861,113830.0,113820.0,0.00334359]
[1761064183532,1.4234946,113830.0,113820.0,0.00334359]
[1761064183880,0.01729901,113830.0,113820.0,0.00334359]
[1761064184103,0.01099999,113830.0,113820.0,0.17905963]
[1761064184305,0.18670059,113830.0,113820.0,0.17905963]
[1761064184529,0.1757006,113830.0,113820.0,0.17905963]
[1761064184936,0.51568561,113840.0,113820.0,0.17905963]
[1761064185137,0.60550462,113840.0,113820.0,0.17711604]
[1761064185416,0.00106815,113830.0,113820.0,0.17711604]
[1761064185632,0.00106815,113830.0,113820.0,0.94509104]
[1761064186164,0.00106815,113830.0,113820.0,1.05711104]
[1761064186589,0.00106815,113830.0,113820.0,1.05611104]
[1761064187465,0.00106815,113830.0,113820.0,0.37795505]
[1761064187666,0.00106815,113830.0,113820.0,1.05611104]
[1761064187846,0.00106815,113830.0,113820.0,1.05811104]
[1761064190390,0.00048536,113860.0,113850.0,0.17566974]
[1761064190605,0.00048536,113860.0,113850.0,0.96634573]
[1761064190832,0.00048536,113860.0,113850.0,0.28818974]
[1761064191049,0.00048536,113860.0,113850.0,0.96634573]
[1761064191667,0.00048536,113860.0,113850.0,0.96734573]
[1761064192114,0.00048536,113860.0,113850.0,0.9836012]
[1761064192325,0.00048536,113860.0,113850.0,0.30544521]
[1761064193865,0.17613967,113860.0,113850.0,0.19292521]
[1761064194529,0.00048536,113860.0,113850.0,0.19292521]
[1761064194977,0.00048536,113860.0,113850.0,0.19295633]
[1761064195591,0.17613967,113860.0,113850.0,0.30543633]
[1761064195963,0.17613967,113860.0,113850.0,0.13172847]
[1761064196404,0.19502155,113860.0,113850.0,0.13172847]
[1761064196792,0.19502155,113860.0,113850.0,0.30739821]
[1761064197424,0.19502155,113860.0,113850.0,0.19491821]
[1761064199718,0.01936724,113860.0,113850.0,0.19491821]
[1761064200148,0.00048536,113860.0,113850.0,0.87310136]
[1761064200797,0.00048536,113860.0,113850.0,1.64107636]
[1761064201007,1e-08,113860.0,113850.0,5.0102339]
[1761064201234,0.0504804,113900.0,113890.0,0.17560804]
[1761064201432,0.01889847,113900.0,113890.0,0.30445019]
[1761064201636,0.05047567,113910.0,113900.0,0.17559262]
[1761064201842,0.01889374,113910.0,113900.0,0.20946563]
[1761064201980,0.20323376,113920.0,113900.0,0.19190637]
[1761064202405,0.17557721,113910.0,113900.0,0.01631375]
[1761064202607,0.01889374,113910.0,113900.0,0.19190637]
[1761064202802,0.23481569,113920.0,113900.0,0.19190637]
[1761064203060,0.23481569,113920.0,113910.0,0.17557721]
[1761064203299,0.01889374,113920.0,113910.0,0.17557721]
[1761064203502,0.01889374,113920.0,113910.0,0.28805721]
[1761064203714,0.03158193,113930.0,113920.0,0.17556179]
[1761064203922,0.01888437,113930.0,113910.0,0.28805721]
[1761064204126,0.97105305,113930.0,113910.0,0.12877344]
[1761064204331,0.17556179,113920.0,113910.0,0.12877344]
[1761064204538,0.01888437,113920.0,113910.0,0.30435065]
[1761064204740,0.08981901,113930.0,113920.0,0.17556179]
[1761064204948,0.0188795,113930.0,113920.0,0.19185523]
[1761064205151,0.23611867,113940.0,113920.0,0.19185051]
[1761064205359,0.11004787,113940.0,113930.0,0.17554638]
[1761064205530,0.28557885,113940.0,113930.0,0.1918351]
[1761064205769,0.28557885,113940.0,113930.0,0.01628872]
[1761064206503,0.28557885,113940.0,113930.0,0.01633712]
[1761064207209,0.99531677,113940.0,113930.0,0.01633712]
[1761064207454,0.236606,113940.0,113930.0,0.01633712]
[1761064209021,0.91476199,113940.0,113930.0,0.01633712]
[1761064209976,0.91476199,113940.0,113920.0,0.11244]
[1761064209977,0.18439623,113890.0,113860.0,0.01999998]
[1761064210182,0.18439623,113890.0,113870.0,0.18424497]
[1761064210384,0.28806207,113900.0,113870.0,0.19570729]
[1761064210585,0.18439174,113910.0,113880.0,0.19318477]
[1761064210771,0.17559689,113900.0,113880.0,0.31376471]
[1761064210913,0.17559689,113900.0,113880.0,0.29620237]
[1761064211328,0.17559262,113900.0,113890.0,0.19316884]
[1761064211557,0.17559262,113900.0,113880.0,0.28806243]
[1761064211760,0.17559262,113900.0,113880.0,0.2962087]
[1761064212414,0.17560804,113890.0,113880.0,0.12058627]
[1761064212563,0.17560804,113890.0,113880.0,0.00814627]
[1761064213003,0.17562346,113880.0,113870.0,0.28807853]
[1761064213174,0.17562346,113880.0,113870.0,0.29622848]
[1761064213377,0.18381646,113880.0,113870.0,0.28807853]
[1761064213752,0.17562346,113880.0,113870.0,0.28807853]
[1761064214160,0.17563888,113870.0,113860.0,4.84e-05]
[1761064217919,0.18384059,113870.0,113860.0,4.84e-05]
[1761064218325,0.18384059,113870.0,113860.0,0.00168315]
[1761064219150,0.17563888,113870.0,113860.0,0.00168315]
[1761064219350,0.18384082,113870.0,113860.0,0.00168315]
[1761064220324,0.00820194,113870.0,113860.0,0.17733746]
[1761064220498,0.17563888,113870.0,113860.0,0.01924858]
[1761064220797,0.17563888,113870.0,113860.0,0.19490289]
[1761064220974,0.17563888,113870.0,113860.0,0.00168315]
[1761064221579,0.17563888,113870.0,113860.0,0.00268315]
[1761064221980,0.17563888,113870.0,113860.0,0.01900376]
[1761064222532,1.09118011,113870.0,113860.0,0.01900376]
[1761064222734,1.11759231,113870.0,113860.0,0.01900376]
[1761064223020,1.45759231,113870.0,113860.0,1e-08]
[1761064223232,0.1757006,113830.0,113810.0,0.17613148]
[1761064223445,0.1757006,113830.0,113810.0,0.28905684]
[1761064223894,0.1757006,113830.0,113820.0,0.00265863]
[1761064226009,0.00878425,113840.0,113820.0,0.17837467]
[1761064226354,0.17568517,113840.0,113830.0,0.2881385]
[1761064226552,0.17568517,113840.0,113830.0,0.11244]
[1761064227398,0.175701,113850.0,113830.0,0.30571066]
[1761064227566,0.17568517,113840.0,113830.0,0.2881406]
[1761064229139,0.175701,113850.0,113830.0,0.2881406]
[1761064229337,0.27230458,113860.0,113840.0,0.19325368]
[1761064229537,0.27230458,113860.0,113840.0,0.87140967]
[1761064229749,0.18442082,113870.0,113850.0,0.28810974]
[1761064229984,0.18442082,113870.0,113850.0,0.29705285]
[1761064230231,0.17566933,113880.0,113860.0,0.19321974]
[1761064231034,0.17566933,113880.0,113860.0,0.19326817]
[1761064231251,0.17563888,113870.0,113860.0,0.01761386]
[1761064231474,0.17563888,113870.0,113860.0,0.17570274]
[1761064231765,0.17563888,113870.0,113860.0,0.17705258]
[1761064231973,0.17563888,113870.0,113860.0,0.00139827]
[1761064232134,0.2107697,113870.0,113860.0,0.00139827]
[1761064232745,1.3187447,113870.0,113860.0,0.00139827]
[1761064232954,1.4311847,113870.0,113860.0,0.00139827]
[1761064233187,0.75302871,113870.0,113860.0,0.00139827]
[1761064233374,0.51563888,113870.0,113860.0,0.00139827]
[1761064233703,0.62807888,113870.0,113860.0,0.00139827]
[1761064234198,0.51563888,113870.0,113860.0,0.00139827]
[1761064235124,0.51663888,113870.0,113860.0,0.00139827]
[1761064235541,0.51563888,113870.0,113860.0,0.00139827]
[1761064236127,0.60545789,113870.0,113860.0,0.00139827]
[1761064236533,0.51563888,113870.0,113860.0,0.00139827]
[1761064239203,0.60545789,113870.0,113860.0,0.00139827]
[1761064239345,1.28361388,113870.0,113860.0,0.00139827]
[1761064239742,0.60545789,113870.0,113860.0,0.00139827]
[1761064240341,0.60645789,113870.0,113860.0,0.00139827]
[1761064240549,1.37443289,113870.0,113860.0,0.00139827]
[1761064241587,1.40084656,113870.0,113860.0,0.00139827]
[1761064242376,1.40184656,113870.0,113860.0,0.00139827]
[1761064242959,1.40184656,113870.0,113860.0,1e-08]
[1761064243969,1.31202755,113870.0,113860.0,1e-08]
[1761064244195,1.42446755,113870.0,113860.0,1e-08]
[1761064244793,0.63387156,113870.0,113860.0,1e-08]
[1761064244995,0.60745789,113870.0,113860.0,1e-08]
[1761064245216,0.71989789,113870.0,113860.0,1e-08]
[1761064245661,0.71889789,113870.0,113860.0,1e-08]
[1761064245955,0.8087169,113870.0,113860.0,1e-08]
[1761064246661,0.8077169,113870.0,113860.0,1e-08]
[1761064248064,0.8087169,113870.0,113860.0,1e-08]
[1761064249251,0.71889789,113870.0,113860.0,1e-08]
[1761064251201,1.55770299,113870.0,113860.0,1e-08]
[1761064252426,1.55670299,113870.0,113860.0,1e-08]
[1761064252630,0.71889789,113870.0,113860.0,1e-08]
[1761064253375,0.71989789,113870.0,113860.0,1e-08]
[1761064253612,0.60745789,113870.0,113860.0,1e-08]
[1761064254419,0.60645789,113870.0,113860.0,1e-08]
[1761064254758,0.60545789,113870.0,113860.0,1e-08]
[1761064260260,0.34,113870.0,113860.0,0.17565432]
[1761064260458,0.17562346,113880.0,113870.0,0.17563888]
[1761064260671,0.33203782,113890.0,113870.0,0.17563888]
[1761064260873,0.21024642,113890.0,113880.0,0.17562346]
[1761064261077,0.18383534,113890.0,113880.0,0.17562346]
[1761064261501,0.0082273,113890.0,113880.0,0.17562346]
[1761064261867,0.001,113890.0,113880.0,0.3056258]
[1761064262021,0.17592112,113900.0,113890.0,0.17560804]
[1761064262223,0.00855126,113900.0,113890.0,0.17560804]
[1761064262419,0.00032735,113900.0,113890.0,0.17560804]
[1761064262624,0.00032735,113900.0,113890.0,1.03197394]
[1761064262789,0.00032735,113900.0,113880.0,0.1213201]
[1761064263004,0.00032735,113900.0,113880.0,0.11244]
[1761064263005,0.17560804,113890.0,113880.0,0.11244]
[1761064263278,0.17560804,113890.0,113880.0,0.28806346]
[1761064264063,0.17592011,113900.0,113880.0,0.28806346]
[1761064264412,0.00032735,113900.0,113890.0,0.17560804]
[1761064264660,0.17591997,113900.0,113890.0,0.17560804]
[1761064265017,0.00032735,113900.0,113890.0,0.17560804]
[1761064265381,0.17591997,113900.0,113890.0,0.17560804]
[1761064265946,0.00032735,113900.0,113890.0,0.17560804]
[1761064266350,0.00032735,113900.0,113890.0,0.18764948]
[1761064266576,0.00032735,113900.0,113890.0,0.19316884]
[1761064266775,0.00032735,113900.0,113890.0,1.12179295]
[1761064266979,0.00032735,113900.0,113890.0,1.44423215]
[1761064267738,0.00032735,113900.0,113890.0,4.44423215]
[1761064267739,1e-08,113900.0,113890.0,4.44423215]
[1761064267939,1e-08,113900.0,113890.0,4.47438969]
[1761064268222,0.01260505,113900.0,113890.0,3.60642705]
[1761064268423,0.01260505,113900.0,113890.0,3.60542705]
[1761064268629,0.01260505,113900.0,113890.0,4.44423215]
[1761064269296,0.01260505,113900.0,113890.0,4.47338969]
[1761064269498,0.01260505,113900.0,113890.0,4.48153605]
[1761064269696,0.01260505,113900.0,113890.0,1.45237851]
[1761064269920,0.01260505,113900.0,113890.0,1.48153605]
[1761064270133,0.01260505,113900.0,113890.0,1.48353605]
[1761064270343,0.01260505,113900.0,113890.0,4.48353605]
[1761064270528,0.01260505,113900.0,113890.0,4.48353423]
[1761064271090,0.01260505,113900.0,113890.0,0.64472913]
[1761064271341,0.01260505,113900.0,113890.0,1.48353423]
[1761064271885,0.01260505,113900.0,113890.0,0.64472913]
[1761064272088,0.01260505,113900.0,113890.0,1.48353423]
[1761064272297,0.01260505,113900.0,113890.0,1.56677669]
[1761064273135,0.01260505,113900.0,113890.0,1.45437669]
[1761064273488,0.01260505,113900.0,113890.0,0.29815258]
[1761064274333,0.01260505,113900.0,113890.0,1.22677669]
[1761064274535,0.01260505,113900.0,113890.0,0.01014454]
[1761064274749,0.18819767,113900.0,113890.0,0.01014454]
[1761064274941,0.18819767,113900.0,113890.0,0.12250143]
[1761064275080,0.18819767,113900.0,113890.0,0.12250195]
[1761064275645,0.18819767,113900.0,113890.0,0.11436]
[1761064276307,0.18819767,113900.0,113890.0,0.002]
[1761064276511,0.18819767,113900.0,113890.0,0.11436]
[1761064276685,0.22546874,113900.0,113890.0,0.11236]
[1761064276881,0.56546874,113900.0,113890.0,0.11236]
[1761064277232,0.52819767,113900.0,113890.0,0.11236]
[1761064282009,0.52819767,113900.0,113890.0,0.0992]
[1761064283533,0.52819767,113900.0,113890.0,0.10736123]
[1761064283898,0.61801668,113900.0,113890.0,0.00816123]
[1761064284059,0.17563888,113870.0,113860.0,1e-08]
[1761064284259,0.17563888,113870.0,113860.0,0.00816364]
[1761064284459,0.21076648,113870.0,113860.0,0.00816364]
[1761064284788,1.47939059,113870.0,113860.0,0.00816364]
[1761064284986,1.47939059,113870.0,113860.0,1e-08]
[1761064285470,1.48939058,113870.0,113860.0,1e-08]
[1761064286046,0.65058548,113870.0,113860.0,1e-08]
[1761064286229,1.47939059,113870.0,113860.0,1e-08]
[1761064286432,1.59175059,113870.0,113860.0,1e-08]
[1761064286701,1.59275059,113870.0,113860.0,1e-08]
[1761064287097,1.59275059,113870.0,113860.0,0.00100001]
[1761064287670,1.59275059,113870.0,113860.0,1e-08]
[1761064288017,1.59375059,113870.0,113860.0,1e-08]
[1761064288605,0.75494549,113870.0,113860.0,1e-08]
[1761064288808,1.59375059,113870.0,113860.0,1e-08]
[1761064290417,1.59379059,113870.0,113860.0,1e-08]
[1761064290632,0.64258549,113870.0,113860.0,1e-08]
[1761064290809,1.59379059,113870.0,113860.0,1e-08]
[1761064291688,1.59279059,113870.0,113860.0,1e-08]
[1761064291889,1.59179059,113870.0,113860.0,1e-08]
[1761064292090,1.59279059,113870.0,113860.0,1e-08]
[1761064294632,0.75398549,113870.0,113860.0,1e-08]
[1761064294854,1.59279059,113870.0,113860.0,1e-08]
[1761064295062,0.75398549,113870.0,113860.0,1e-08]
[1761064295226,1.59279059,113870.0,113860.0,1e-08]
[1761064295601,0.60645789,113870.0,113860.0,1e-08]
[1761064295803,0.745271,113870.0,113860.0,1e-08]
[1761064296013,0.71885789,113870.0,113860.0,1e-08]
[1761064296154,0.37885789,113870.0,113860.0,1e-08]
[1761064296571,0.71885789,113870.0,113860.0,1e-08]
[1761064296780,0.8086769,113870.0,113860.0,1e-08]
[1761064297737,0.001,113870.0,113860.0,1e-08]
[1761064297937,0.17663888,113870.0,113860.0,1e-08]
[1761064298357,0.17563888,113870.0,113860.0,1e-08]
[1761064298787,0.51663888,113870.0,113860.0,1e-08]
[1761064299008,0.51563888,113870.0,113860.0,1e-08]
[1761064299238,0.51563888,113870.0,113860.0,0.17565432]
[1761064299443,0.1756371,113880.0,113870.0,0.17563888]
[1761064299573,0.1756371,113880.0,113860.0,1e-08]
[1761064299574,0.17563888,113870.0,113860.0,1e-08]
[1761064304021,0.17563888,113870.0,113860.0,0.17565432]
[1761064304465,0.17563888,113870.0,113860.0,1e-08]
[1761064306132,0.71785789,113870.0,113860.0,1e-08]
[1761064306599,1.55666299,113870.0,113860.0,1e-08]
[1761064306801,1.48548102,113870.0,113860.0,1e-08]
[1761064307442,0.8076769,113870.0,113860.0,1e-08]
[1761064307647,1.48548102,113870.0,113860.0,1e-08]
[1761064307970,0.8076769,113870.0,113860.0,1e-08]
[1761064308385,1.48548102,113870.0,113860.0,1e-08]
[1761064309399,0.8076769,113870.0,113860.0,1e-08]
[1761064309879,1.48548102,113870.0,113860.0,1e-08]
[1761064310448,0.8076769,113870.0,113860.0,1e-08]
[1761064310661,0.71785789,113870.0,113860.0,1e-08]
[1761064310864,0.60545789,113870.0,113860.0,1e-08]
[1761064313038,1.28326201,113870.0,113860.0,1e-08]
[1761064313214,0.64187559,113870.0,113860.0,1e-08]
[1761064313411,1.31967971,113870.0,113860.0,1e-08]
[1761064313748,1.40949872,113870.0,113860.0,1e-08]
[1761064314156,1.40941044,113870.0,113860.0,1e-08]
[1761064314476,1.41141044,113870.0,113860.0,1e-08]
[1761064314883,1.41041044,113870.0,113860.0,1e-08]
[1761064315290,1.40041045,113870.0,113860.0,1e-08]
[1761064315575,1.41041044,113870.0,113860.0,1e-08]
[1761064316467,1.40041045,113870.0,113860.0,1e-08]
[1761064316679,1.41934972,113870.0,113860.0,1e-08]
[1761064316824,1.42034972,113870.0,113860.0,1e-08]
[1761064317440,1.43034971,113870.0,113860.0,1e-08]
[1761064318290,4.43034971,113870.0,113860.0,1e-08]
[1761064318729,1.43034971,113870.0,113860.0,1e-08]
[1761064318923,1.53274972,113870.0,113860.0,1e-08]
[1761064319351,1.42034972,113870.0,113860.0,1e-08]
[1761064319490,1.53274972,113870.0,113860.0,1e-08]
[1761064320305,4.54274971,113870.0,113860.0,1e-08]
[1761064320748,4.53274972,113870.0,113860.0,1e-08]
[1761064320951,0.7425456,113870.0,113860.0,1e-08]
[1761064321178,1.53274972,113870.0,113860.0,1e-08]
[1761064321355,1.42034972,113870.0,113860.0,1e-08]
[1761064321667,1.53274972,113870.0,113860.0,1e-08]
[1761064322984,1.51381045,113870.0,113860.0,1e-08]
[1761064323269,1.40141045,113870.0,113860.0,1e-08]
[1761064323484,1.51381045,113870.0,113860.0,1e-08]
[1761064324186,1.42399144,113870.0,113860.0,1e-08]
[1761064324901,1.44293278,113870.0,113860.0,1e-08]
[1761064326106,4.45293277,113870.0,113860.0,1e-08]
[1761064326586,4.4845147,113870.0,113860.0,1e-08]
[1761064328048,1.45293277,113870.0,113860.0,1e-08]
[1761064328286,1.54275178,113870.0,113860.0,1e-08]
[1761064328519,1.43035178,113870.0,113860.0,1e-08]
[1761064328752,1.53275179,113870.0,113860.0,1e-08]
[1761064328992,1.42035179,113870.0,113860.0,1e-08]
[1761064329224,1.53275179,113870.0,113860.0,1e-08]
[1761064329457,1.10293278,113870.0,113860.0,1e-08]
[1761064329666,0.42512866,113870.0,113860.0,1e-08]
[1761064329840,1.10293278,113870.0,113860.0,1e-08]
[1761064329980,1.44293278,113870.0,113860.0,1e-08]
[1761064330183,1.53275179,113870.0,113860.0,1e-08]
[1761064330829,1.42035179,113870.0,113860.0,1e-08]
[1761064331022,1.53275179,113870.0,113860.0,1e-08]
[1761064335809,4.5843337,113870.0,113860.0,1e-08]
[1761064336015,0.76254765,113870.0,113860.0,1e-08]
[1761064336172,1.44297278,113870.0,113860.0,1e-08]
[1761064338437,0.76516866,113870.0,113860.0,1e-08]
[1761064338786,1.44297278,113870.0,113860.0,1e-08]
[1761064340193,0.65272866,113870.0,113860.0,1e-08]
[1761064340392,1.53279179,113870.0,113860.0,1e-08]
[1761064340574,0.82856996,113870.0,113860.0,1e-08]
[1761064340774,0.37612996,113870.0,113860.0,1e-08]
[1761064340973,0.48856996,113870.0,113860.0,1e-08]
[1761064341562,0.28631095,113870.0,113860.0,1e-08]
[1761064341763,0.26536961,113870.0,113860.0,1e-08]
[1761064341971,0.37880961,113870.0,113860.0,1e-08]